[Event "Chile-ch Women 2019"]
[Site "Santiago Las Condes"]
[Date "2019.02.13"]
[Round "3.6"]
[White "Ruiz Olate, Emily Andrea"]
[Black "Vildosola Canales, Melany"]
[Result "1/2-1/2"]
[ECO "A16"]
[WhiteElo "1892"]
[BlackElo "1531"]
[Annotator "NA RC"]
[PlyCount "65"]
[EventDate "2019.02.12"]
[EventType "swiss"]
[EventCountry "CHI"]
[SourceTitle "playchess.com"]
[Source "ChessBase"]
[SourceQuality "1"]
[TimeControl "5400+30"]

1. c4 {[%emt 0:00:23]} Nf6 {[%emt 0:00:00]} 2. Nc3 {[%emt 0:00:07]} d5 {[%emt 0:00:18]} 3. cxd5 {[%emt 0:05:25]} Nxd5 {[%emt 0:00:52]} 4. Qb3 {[%emt 0:01:30]} Nxc3 {[%emt 0:02:58]} 5. bxc3 {[%emt 0:00:30]} g6 {[%emt 0:01:27]} 6. g3 {[%emt 0:05:31]} Bg7 {[%emt 0:02:06]} 7. Bg2 {[%emt 0:00:12]} c6 {[%emt 0:02:11]} 8. Nf3 {[%emt 0:06:55]} Nd7 {[%emt 0:04:11]} 9. Ba3 {[%emt 0:02:19]} Nb6 {[%emt 0:06:25]} 10. O-O {[%emt 0:03:29]} O-O {[%emt 0:00:56]} 11. Rad1 {[%emt 0:09:44]} Be6 {[%emt 0:08:18]} 12. Qc2 {[%emt 0:02:41]} Re8 {[%emt 0:02:32]} 13. Ng5 {[%emt 0:01:35]} Bc4 {[%emt 0:07:58]} 14. d3 {[%emt 0:06:28]} Bb5 {[%emt 0:04:33]} 15. Qd2 {[%emt 0:03:10]} Ba4 {[%emt 0:07:12]} 16. Qf4 {[%emt 0:04:36] [#]} Bf6 $1 {[%emt 0:16:24]} 17. Ne4 $17 {[%emt 0:20:16]} Bxd1 {[%emt 0:04:46]} 18. Rxd1 {[%emt 0:00:02]} Nd5 {[%emt 0:05:52]} 19. Nxf6+ {[%emt 0:00:41]} exf6 {[%emt 0:01:17]} 20. Qd2 {[%emt 0:01:05]} Qa5 {[%emt 0:02:50]} 21. Bb4 {[%emt 0:00:20]} Nxb4 {[%emt 0:00:29]} 22. cxb4 {[%emt 0:00:03]} Qe5 {[%emt 0:00:24]} 23. Bf3 {[%emt 0:01:05]} Rad8 {[%emt 0:03:40]} 24. Qc2 {[%emt 0:03:31]} f5 {[%emt 0:02:35]} 25. Qc4 {[%emt 0:05:41]} Rd4 {[%emt 0:03:55]} 26. Qb3 {[%emt 0:02:50]} f4 {[%emt 0:02:09]} 27. a4 {[%emt 0:01:06]} fxg3 {[%emt 0:00:28]} 28. hxg3 {[%emt 0:00:02]} h5 {[%emt 0:02:07]} 29. Kg2 {[%emt 0:00:32]} Qe6 {[%emt 0:00:32]} 30. Qc3 {[%emt 0:01:40]} Qd6 {[%emt 0:00:37]} 31. Rb1 {[%emt 0:01:53]} Qe5 {[%emt 0:00:37]} 32. Rd1 {[%emt 0:10:38]} Qd6 {[%emt 0:00:19]} 33. Rb1 {[%emt 0:00:30]} 1/2-1/2

[Event "Chile-ch Women 2019"]
[Site "Santiago Las Condes"]
[Date "2019.02.13"]
[Round "3.8"]
[White "Abarca Gonzalez, Damaris"]
[Black "Yarur Rescaglio, Maria Jose"]
[Result "1-0"]
[ECO "B34"]
[WhiteElo "2039"]
[BlackElo "1279"]
[Annotator "NA RC"]
[PlyCount "103"]
[EventDate "2019.02.12"]
[EventType "swiss"]
[EventCountry "CHI"]
[SourceTitle "playchess.com"]
[Source "ChessBase"]
[SourceQuality "1"]
[TimeControl "5400+30"]

1. e4 {[%emt 0:00:00]} c5 {[%emt 0:00:00]} 2. Nf3 {[%emt 0:00:00]} Nc6 {[%emt 0:00:00]} 3. d4 {[%emt 0:00:00]} cxd4 {[%emt 0:00:00]} 4. Nxd4 {[%emt 0:00:00]} g6 {[%emt 0:00:10]} 5. Nc3 {[%emt 0:00:21]} Bg7 {[%emt 0:00:08]} 6. Be3 {[%emt 0:00:04]} Nf6 {[%emt 0:00:14]} 7. f3 {[%emt 0:00:09]} O-O {[%emt 0:00:29]} 8. Qd2 {[%emt 0:00:06]} d5 {[%emt 0:02:25]} 9. Nxc6 {[%emt 0:06:05]} bxc6 {[%emt 0:00:21]} 10. e5 {[%emt 0:00:31]} Nd7 {[%emt 0:02:27] B34: Sicilian: Accelerated Dragon with 5 Nc3: sidelines} 11. f4 {[%emt 0:01:27]} Nb6 {[%emt 0:05:01]} (11... e6 12. Be2 c5 13. Bf2 Bb7 14. Bf3 Rb8 15. Ne2 d4 16. Bxb7 Rxb7 17. c3 Nb6 18. cxd4 Nc4 19. Qc3 Nxb2 20. dxc5 {0-1 (40) Gomes,M (2354)-Kosintseva,T (2483) Sochi 2015}) 12. Be2 {[%emt 0:05:53]} Qc7 {[%emt 0:03:30]} 13. O-O {[%emt 0:02:39]} Be6 $146 {[%emt 0:07:24]} ({Predecessor:} 13... Rd8 14. Bc5 Bf8 15. Rad1 Rb8 16. Qd4 e6 17. Ne4 Bxc5 18. Nxc5 Nd7 19. Nxd7 Rxd7 20. b4 Qb6 21. a3 Rc7 22. Qxb6 Rxb6 {½-½ (22) Cap,A (1999)-Simonik,A (1921) Czechia 2012}) 14. Bc5 {[%emt 0:02:00]} Rad8 {[%emt 0:02:06]} 15. Qe3 {[%emt 0:02:33]} Qd7 {[%emt 0:05:22]} 16. Rad1 {[%emt 0:02:53]} Qc7 {[%emt 0:13:14]} 17. g4 {[%emt 0:02:11]} Bc8 {[%emt 0:05:57]} 18. h4 {[%emt 0:04:49]} Nc4 {[%emt 0:04:42]} 19. Qc1 {[%emt 0:07:39]} f6 {[%emt 0:05:32]} 20. exf6 {[%emt 0:08:29]} Rxf6 {[%emt 0:03:07]} 21. b3 {[%emt 0:06:02]} Nd6 {[%emt 0:01:54]} 22. Qd2 {[%emt 0:01:17]} Rdf8 {[%emt 0:05:09]} 23. Rf2 {[%emt 0:05:13]} (23. Bd4 $17) 23... R6f7 {[%emt 0:04:14]} 24. Bd4 $19 {[%emt 0:07:59]} e5 {[%emt 0:07:01]} 25. fxe5 {[%emt 0:00:27]} Rxf2 {[%emt 0:01:03]} 26. Bxf2 {[%emt 0:05:12]} Bxe5 {[%emt 0:00:27]} 27. Rf1 {[%emt 0:03:16]} Be6 {[%emt 0:05:03]} 28. Bd4 {[%emt 0:07:00]} Bh2+ {[%emt 0:03:00]} 29. Kg2 {[%emt 0:02:25]} Rxf1 {[%emt 0:01:07]} 30. Kxf1 {[%emt 0:00:54]} Qf7+ {[%emt 0:01:03]} 31. Kg2 {[%emt 0:00:18]} Bf4 {[%emt 0:00:42]} 32. Qd3 {[%emt 0:00:46]} Qd7 {[%emt 0:02:20]} 33. Qf3 {[%emt 0:00:50]} Bh6 {[%emt 0:00:56]} 34. Na4 {[%emt 0:06:08]} Ne4 {[%emt 0:01:39]} 35. Nc5 {[%emt 0:01:04]} Nxc5 {[%emt 0:00:22]} 36. Bxc5 {[%emt 0:00:03]} d4 {[%emt 0:01:25]} 37. Qe4 {[%emt 0:02:22]} Bd5 {[%emt 0:00:46]} 38. Bc4 {[%emt 0:00:01]} Bxc4 {[%emt 0:01:04]} 39. bxc4 {[%emt 0:00:05]} Be3 {[%emt 0:01:13]} 40. Qf3 {[%emt 0:02:39]} Qf7 {[%emt 0:00:56]} 41. Qxf7+ {[%emt 0:00:27]} Kxf7 {[%emt 0:00:02]} 42. Bxa7 {[%emt 0:00:33]} Ke6 {[%emt 0:00:36]} 43. Bc5 {[%emt 0:00:19]} Ke5 {[%emt 0:01:11]} 44. Kf3 {[%emt 0:00:12]} h6 {[%emt 0:00:45]} 45. a4 {[%emt 0:00:54]} Ke6 {[%emt 0:00:48]} 46. a5 {[%emt 0:00:11]} Kd7 {[%emt 0:00:08]} 47. a6 {[%emt 0:00:12]} Kc7 {[%emt 0:00:12]} 48. c3 {[%emt 0:00:09]} Bg1 {[%emt 0:01:18]} 49. cxd4 {[%emt 0:00:17]} Kb8 {[%emt 0:01:05]} 50. Ke4 {[%emt 0:00:16]} Kc7 {[%emt 0:00:22]} 51. Ke5 {[%emt 0:00:15]} Kb8 {[%emt 0:00:43]} 52. Kd6 {[%emt 0:00:09]} 1-0

[Event "Chile-ch Women 2019"]
[Site "Santiago Las Condes"]
[Date "2019.02.14"]
[Round "4.1"]
[White "Gomez Barrera, Javiera Belen"]
[Black "Vargas Banda, Valentina"]
[Result "1-0"]
[ECO "B99"]
[WhiteElo "1990"]
[BlackElo "1682"]
[Annotator "NA RC"]
[PlyCount "41"]
[EventDate "2019.02.12"]
[EventType "swiss"]
[EventCountry "CHI"]
[SourceTitle "playchess.com"]
[Source "ChessBase"]
[SourceQuality "1"]
[TimeControl "5400+30"]

1. e4 {[%emt 0:00:00]} c5 {[%emt 0:00:00]} 2. Nf3 {[%emt 0:00:00]} d6 {[%emt 0:00:21]} 3. d4 {[%emt 0:00:00]} cxd4 {[%emt 0:00:10]} 4. Nxd4 {[%emt 0:00:00]} Nf6 {[%emt 0:00:03]} 5. Nc3 {[%emt 0:00:00]} a6 {[%emt 0:00:15]} 6. Bg5 {[%emt 0:00:15]} e6 {[%emt 0:00:15]} 7. f4 {[%emt 0:00:17]} Be7 {[%emt 0:00:32]} 8. Qf3 {[%emt 0:00:14]} Qc7 {[%emt 0:03:26]} 9. O-O-O {[%emt 0:00:10]} Nbd7 {[%emt 0:01:25]} 10. g4 {[%emt 0:00:14]} b5 {[%emt 0:01:42]} 11. Bxf6 {[%emt 0:00:59]} Nxf6 {[%emt 0:00:15]} 12. g5 {[%emt 0:00:06]} Nd7 {[%emt 0:00:11]} 13. f5 {[%emt 0:00:07]} Bxg5+ {[%emt 0:03:04]} 14. Kb1 {[%emt 0:00:01] LiveBook: 380 Games} b4 $18 {[%emt 0:17:25]} ({Black should play} 14... O-O $14) 15. fxe6 {[%emt 0:18:30]} Nf6 {[%emt 0:07:50]} 16. Nd5 {[%emt 0:51:55]} Nxd5 {[%emt 0:02:13]} 17. exd5 {[%emt 0:00:01]} O-O {[%emt 0:01:53]} 18. Bd3 {[%emt 0:01:31]} g6 {[%emt 0:18:24]} 19. Rdf1 {[%emt 0:14:41]} Bb7 {[%emt 0:10:05]} 20. Rhg1 {[%emt 0:05:03]} fxe6 {[%emt 0:10:11]} 21. Qxf8+ {[%emt 0:01:22]} 1-0

[Event "Chile-ch Women 2019"]
[Site "Santiago Las Condes"]
[Date "2019.02.14"]
[Round "4.2"]
[White "Manriquez Abarzua, Maria Belen"]
[Black "Abdala Cancino, Patricia Anastas"]
[Result "1-0"]
[ECO "C48"]
[WhiteElo "1650"]
[BlackElo "1534"]
[Annotator "NA RC"]
[PlyCount "105"]
[EventDate "2019.02.12"]
[EventType "swiss"]
[EventCountry "CHI"]
[SourceTitle "playchess.com"]
[Source "ChessBase"]
[SourceQuality "1"]
[TimeControl "5400+30"]

1. e4 {[%emt 0:00:00]} e5 {[%emt 0:00:00]} 2. Nf3 {[%emt 0:00:00]} Nc6 {[%emt 0:00:04]} 3. Nc3 {[%emt 0:00:00]} Nf6 {[%emt 0:00:33]} 4. Bb5 {[%emt 0:00:00]} Bc5 {[%emt 0:00:35]} 5. O-O {[%emt 0:02:39]} Qe7 {[%emt 0:02:54]} 6. d3 {[%emt 0:03:57]} O-O {[%emt 0:01:21]} 7. Bg5 {[%emt 0:00:32]} a6 {[%emt 0:02:26]} 8. Nd5 {[%emt 0:02:55]} Qd8 {[%emt 0:00:34]} 9. Bxc6 {[%emt 0:01:11]} dxc6 {[%emt 0:00:16]} 10. Nxf6+ {[%emt 0:00:07]} gxf6 {[%emt 0:00:09]} 11. Bh6 {[%emt 0:01:10]} Re8 {[%emt 0:00:06]} 12. Nh4 {[%emt 0:08:55]} Bf8 {[%emt 0:00:24]} 13. Bxf8 {[%emt 0:00:25]} Rxf8 {[%emt 0:00:30]} 14. Kh1 {[%emt 0:01:09]} Kh8 {[%emt 0:00:45]} 15. f4 {[%emt 0:00:56]} Rg8 {[%emt 0:00:44]} 16. fxe5 {[%emt 0:00:35]} fxe5 {[%emt 0:03:22]} 17. Qh5 {[%emt 0:00:52]} Qg5 {[%emt 0:02:13]} 18. Qxg5 {[%emt 0:00:24]} Rxg5 {[%emt 0:00:05]} 19. Rxf7 {[%emt 0:00:18]} Rg7 {[%emt 0:00:44]} 20. Raf1 {[%emt 0:00:37]} Be6 {[%emt 0:00:31]} 21. Rxg7 {[%emt 0:00:49]} Kxg7 {[%emt 0:00:11]} 22. b3 {[%emt 0:00:39]} a5 {[%emt 0:02:50]} 23. Nf3 {[%emt 0:03:33]} Re8 {[%emt 0:01:55]} 24. h3 {[%emt 0:11:14]} Bg8 {[%emt 0:01:34]} 25. Nh4 {[%emt 0:00:58]} a4 {[%emt 0:00:43]} 26. Rf5 {[%emt 0:02:28]} axb3 {[%emt 0:02:17]} 27. axb3 {[%emt 0:00:09]} Bf7 {[%emt 0:04:13]} 28. Nf3 {[%emt 0:00:43]} Bg6 {[%emt 0:00:52]} 29. Rxe5 {[%emt 0:00:44]} Rxe5 {[%emt 0:00:13]} 30. Nxe5 {[%emt 0:00:02]} Bh5 {[%emt 0:00:08]} 31. g4 {[%emt 0:00:09]} Be8 {[%emt 0:00:07]} 32. Kg2 {[%emt 0:00:36]} Kf6 {[%emt 0:00:07]} 33. d4 {[%emt 0:00:20]} c5 {[%emt 0:00:24]} 34. c3 {[%emt 0:00:11]} cxd4 {[%emt 0:00:02]} 35. cxd4 {[%emt 0:00:19]} c5 {[%emt 0:00:02]} 36. Nf3 {[%emt 0:01:00]} cxd4 {[%emt 0:00:04]} 37. Nxd4 {[%emt 0:00:54]} Ke5 {[%emt 0:00:01]} 38. Nf5 {[%emt 0:00:13]} Bc6 {[%emt 0:00:06]} 39. Ng3 {[%emt 0:01:35]} Kf4 {[%emt 0:04:47]} 40. Kf2 {[%emt 0:01:52]} b6 {[%emt 0:00:53]} 41. Nh5+ {[%emt 0:01:01]} Kxe4 {[%emt 0:00:09]} 42. Nf6+ {[%emt 0:00:07]} Kd3 {[%emt 0:00:14]} 43. Nxh7 {[%emt 0:00:42]} Kc3 {[%emt 0:00:16]} 44. h4 {[%emt 0:00:18]} Kxb3 {[%emt 0:00:42]} 45. h5 {[%emt 0:00:13]} Ka3 {[%emt 0:02:26]} 46. Nf6 {[%emt 0:00:11]} Ba4 {[%emt 0:00:58]} 47. Ke3 {[%emt 0:00:38]} b5 {[%emt 0:00:23]} 48. h6 {[%emt 0:00:06]} Bc2 {[%emt 0:00:35]} 49. Ne4 {[%emt 0:00:04]} Bxe4 {[%emt 0:00:22]} 50. Kxe4 {[%emt 0:00:10]} b4 {[%emt 0:00:03]} 51. h7 {[%emt 0:00:06]} b3 {[%emt 0:00:11]} 52. h8=Q {[%emt 0:00:10]} b2 {[%emt 0:00:15]} 53. Qxb2+ {[%emt 0:57:34]} 1-0

[Event "Chile-ch Women 2019"]
[Site "Santiago Las Condes"]
[Date "2019.02.14"]
[Round "4.3"]
[White "Hormazabal Figueroa, Constanza Va"]
[Black "Reyes Jara, Paula"]
[Result "0-1"]
[ECO "C54"]
[WhiteElo "1624"]
[BlackElo "1955"]
[Annotator "NA RC"]
[PlyCount "72"]
[EventDate "2019.02.12"]
[EventType "swiss"]
[EventCountry "CHI"]
[SourceTitle "playchess.com"]
[Source "ChessBase"]
[SourceQuality "1"]
[TimeControl "5400+30"]

1. e4 {[%emt 0:00:00]} e5 {[%emt 0:04:22]} 2. Nf3 {[%emt 0:00:00]} Nc6 {[%emt 0:00:06]} 3. Bc4 {[%emt 0:00:02]} Bc5 {[%emt 0:00:17]} 4. c3 {[%emt 0:00:34]} Nf6 {[%emt 0:00:13]} 5. d3 {[%emt 0:00:10]} d6 {[%emt 0:00:57]} 6. a4 {[%emt 0:00:20]} a6 {[%emt 0:02:26]} 7. O-O {[%emt 0:00:19]} O-O {[%emt 0:00:33]} 8. Re1 {[%emt 0:00:10]} Bg4 {[%emt 0:10:35]} 9. Nbd2 {[%emt 0:00:46]} Qd7 {[%emt 0:05:49]} 10. Nf1 $14 {[%emt 0:01:17]} Bxf3 {[%emt 0:11:51]} 11. Qxf3 {[%emt 0:00:14]} Qg4 {[%emt 0:00:05]} 12. Qg3 {[%emt 0:04:36]} Kh8 {[%emt 0:03:19]} 13. h3 {[%emt 0:01:48]} Qg6 {[%emt 0:03:24]} 14. Qf3 {[%emt 0:02:29]} Nh5 {[%emt 0:06:09]} 15. g4 {[%emt 0:01:20]} Ne7 {[%emt 0:02:08]} 16. Kh2 {[%emt 0:00:32]} Nf6 {[%emt 0:00:14]} 17. Ng3 {[%emt 0:00:50]} c6 {[%emt 0:02:34]} 18. Nf5 {[%emt 0:00:26]} Nfg8 {[%emt 0:07:24]} 19. g5 {[%emt 0:00:49]} d5 {[%emt 0:01:20]} 20. Nxe7 {[%emt 0:01:27]} Bxe7 {[%emt 0:02:39]} 21. exd5 {[%emt 0:00:35]} Rad8 {[%emt 0:05:58]} 22. dxc6 {[%emt 0:01:28]} bxc6 {[%emt 0:03:27]} 23. Bxa6 {[%emt 0:02:02]} f5 {[%emt 0:02:11]} 24. gxf6 {[%emt 0:01:45]} Rxf6 {[%emt 0:02:31]} 25. Qg3 {[%emt 0:00:55]} Qf7 {[%emt 0:00:19]} 26. Bc4 {[%emt 0:02:50]} Qf8 {[%emt 0:01:15]} 27. Re2 {[%emt 0:10:42]} Rf3 {[%emt 0:01:30]} 28. Qg2 {[%emt 0:06:27]} Rd6 {[%emt 0:00:27]} 29. Be3 {[%emt 0:21:37]} Rg6 {[%emt 0:00:16]} 30. Qh1 {[%emt 0:02:37]} Qf5 {[%emt 0:00:21]} 31. Qf1 {[%emt 0:00:50]} e4 {[%emt 0:00:49]} 32. Bc5 {[%emt 0:06:47]} Bxc5 {[%emt 0:00:51]} 33. dxe4 {[%emt 0:00:10]} Qe5+ {[%emt 0:00:28]} 34. Kh1 {[%emt 0:00:22]} Bd6 {[%emt 0:00:05]} 35. Qg2 {[%emt 0:02:07]} Rxg2 {[%emt 0:01:49]} 36. Kxg2 {[%emt 0:00:06]} Rf8 {[%emt 0:02:25]} 0-1

[Event "Chile-ch Women 2019"]
[Site "Santiago Las Condes"]
[Date "2019.02.14"]
[Round "4.4"]
[White "Vildosola Canales, Melany"]
[Black "Sanchez Tobar, Francisca Valenti"]
[Result "1/2-1/2"]
[ECO "D91"]
[WhiteElo "1531"]
[BlackElo "1817"]
[Annotator "NA RC"]
[PlyCount "130"]
[EventDate "2019.02.12"]
[EventType "swiss"]
[EventCountry "CHI"]
[SourceTitle "playchess.com"]
[Source "ChessBase"]
[SourceQuality "1"]
[TimeControl "5400+30"]

1. d4 {[%emt 0:00:00]} Nf6 {[%emt 0:02:25]} 2. c4 {[%emt 0:00:13]} g6 {[%emt 0:00:13]} 3. Nc3 {[%emt 0:00:10]} Bg7 {[%emt 0:00:11]} 4. Nf3 {[%emt 0:01:11]} O-O {[%emt 0:00:37]} 5. Bg5 {[%emt 0:02:04]} d5 {[%emt 0:03:43]} 6. e3 {[%emt 0:03:16]} Ne4 $14 {[%emt 0:19:59] LiveBook: 4 Games} 7. cxd5 {[%emt 0:47:33]} Nxg5 {[%emt 0:01:55]} 8. Nxg5 {[%emt 0:00:33]} e6 {[%emt 0:30:21]} 9. Nf3 {[%emt 0:03:56]} exd5 {[%emt 0:00:05]} 10. b4 {[%emt 0:02:52]} Re8 {[%emt 0:09:41]} 11. Be2 {[%emt 0:07:20]} Be6 {[%emt 0:04:47]} 12. O-O {[%emt 0:01:10]} Nd7 {[%emt 0:01:21]} 13. Qc2 {[%emt 0:07:12]} a6 {[%emt 0:06:07]} 14. a4 {[%emt 0:03:14]} Qe7 {[%emt 0:01:34]} 15. Rab1 {[%emt 0:03:47]} Nf6 {[%emt 0:02:45]} 16. Rfc1 {[%emt 0:03:15]} Rad8 {[%emt 0:02:45]} 17. b5 {[%emt 0:01:43]} a5 {[%emt 0:02:03]} 18. Na2 {[%emt 0:01:36]} Rc8 {[%emt 0:00:55]} 19. Qd2 {[%emt 0:02:16]} b6 {[%emt 0:00:19]} 20. Nc3 {[%emt 0:00:15]} Red8 {[%emt 0:00:35]} 21. Ne5 {[%emt 0:00:19]} Bd7 {[%emt 0:01:54]} 22. Bd3 {[%emt 0:02:12]} Be8 {[%emt 0:01:34]} 23. Ne2 {[%emt 0:00:23]} Ne4 {[%emt 0:01:55]} 24. Bxe4 {[%emt 0:01:46]} Bxe5 {[%emt 0:01:16]} 25. Bf3 {[%emt 0:00:36]} Bd6 {[%emt 0:02:41]} 26. Qa2 {[%emt 0:00:14]} Ba3 {[%emt 0:00:38]} 27. Rc2 {[%emt 0:00:44]} c6 {[%emt 0:00:14]} 28. bxc6 {[%emt 0:01:20]} Rxc6 {[%emt 0:00:42]} 29. Rxc6 {[%emt 0:01:02]} Bxc6 {[%emt 0:01:15]} 30. Rxb6 {[%emt 0:00:51]} Bxa4 {[%emt 0:00:00]} 31. Bxd5 {[%emt 0:00:28]} Be8 {[%emt 0:00:10]} 32. Nf4 {[%emt 0:01:14]} Bb4 {[%emt 0:00:26]} 33. Qc4 {[%emt 0:00:51]} Kg7 {[%emt 0:00:38]} 34. Nd3 {[%emt 0:00:10]} Bd6 {[%emt 0:00:36]} 35. Rb7 {[%emt 0:00:45]} Bd7 {[%emt 0:00:25]} 36. Nc5 {[%emt 0:00:47]} a4 {[%emt 0:00:40]} 37. Nxd7 {[%emt 0:00:26]} Rxd7 {[%emt 0:00:02]} 38. Rxd7 {[%emt 0:00:22]} Qxd7 {[%emt 0:00:06]} 39. Bc6 {[%emt 0:00:11]} Qc7 {[%emt 0:00:15]} 40. g3 {[%emt 0:01:05]} a3 {[%emt 0:00:07]} 41. Bd5 {[%emt 0:00:23]} Qxc4 {[%emt 0:00:28]} 42. Bxc4 {[%emt 0:00:04]} f6 {[%emt 0:01:48]} 43. Kf1 {[%emt 0:00:11]} Kf8 {[%emt 0:00:08]} 44. Ke2 {[%emt 0:00:11]} Ke7 {[%emt 0:00:16]} 45. Kd3 {[%emt 0:00:14]} Bb4 {[%emt 0:00:29]} 46. f3 {[%emt 0:00:23]} h5 {[%emt 0:00:41]} 47. h3 {[%emt 0:00:57]} Be1 {[%emt 0:00:49]} 48. g4 {[%emt 0:00:09]} Bb4 {[%emt 0:00:21]} 49. Kc2 {[%emt 0:00:23]} h4 {[%emt 0:00:25]} 50. e4 {[%emt 0:00:29]} Bd6 {[%emt 0:00:16]} 51. Kb3 {[%emt 0:00:34]} g5 {[%emt 0:00:10]} 52. Ka4 {[%emt 0:00:09]} Kd7 {[%emt 0:00:18]} 53. Kb5 {[%emt 0:00:52]} Kc7 {[%emt 0:00:13]} 54. Ba2 {[%emt 0:00:41]} Kd7 {[%emt 0:00:46]} 55. Kc4 {[%emt 0:01:15]} Kc6 {[%emt 0:00:29]} 56. Bb3 {[%emt 0:00:04]} Bf4 {[%emt 0:00:48]} 57. Ba4+ {[%emt 0:01:19]} Kd6 {[%emt 0:00:17]} 58. Bb3 {[%emt 0:00:28]} Bd2 {[%emt 0:00:41]} 59. Kd3 {[%emt 0:00:20]} Bc1 {[%emt 0:00:50]} 60. Kc4 {[%emt 0:00:24]} Bd2 {[%emt 0:00:16]} 61. Kd3 {[%emt 0:00:08]} Bc1 {[%emt 0:00:05]} 62. Kc4 {[%emt 0:00:04]} Bd2 {[%emt 0:00:16]} 63. Kd3 {[%emt 0:00:07]} Bc1 {[%emt 0:00:18]} 64. Kc4 {[%emt 0:00:12]} Bd2 {[%emt 0:00:08]} 65. Kd3 {[%emt 0:00:11]} Bc1 {[%emt 0:00:09]} 1/2-1/2

[Event "Chile-ch Women 2019"]
[Site "Santiago Las Condes"]
[Date "2019.02.14"]
[Round "4.5"]
[White "Abarca Gonzalez, Damaris"]
[Black "Romero Troncoso, Liset Anais"]
[Result "1-0"]
[ECO "B00"]
[WhiteElo "2039"]
[BlackElo "1604"]
[Annotator "NA RC"]
[PlyCount "113"]
[EventDate "2019.02.12"]
[EventType "swiss"]
[EventCountry "CHI"]
[SourceTitle "playchess.com"]
[Source "ChessBase"]
[SourceQuality "1"]
[TimeControl "5400+30"]

1. d4 {[%emt 0:02:10]} e6 {[%emt 0:00:39]} 2. e4 {[%emt 0:00:04]} b6 {[%emt 0:00:11]} 3. Nf3 {[%emt 0:00:09]} Bb7 {[%emt 0:00:07]} 4. Bd3 {[%emt 0:00:03]} d6 {[%emt 0:05:36] LiveBook: 174 Games} 5. O-O {[%emt 0:00:10]} Nd7 {[%emt 0:00:18]} 6. Re1 {[%emt 0:00:10]} e5 {[%emt 0:01:42] B00: Queen's Fianchetto Defence, Nimzowitsch Defence} (6... g6 7. Nbd2 Bg7 8. c3 a6 9. Nf1 e5 10. h3 Ngf6 11. Ng3 O-O 12. Bg5 h6 13. Be3 Re8 14. Qc2 Qe7 {½-½ (14) Alekseev,E (2620)-Kamsky,G (2675) St Petersburg 2018}) 7. c3 {[%emt 0:00:34]} Ngf6 {[%emt 0:00:39]} 8. Nbd2 {[%emt 0:00:17]} Be7 {[%emt 0:00:58]} 9. Nf1 {[%emt 0:00:27]} O-O {[%emt 0:00:36]} 10. Ng3 {[%emt 0:00:21]} Re8 {[%emt 0:00:16]} 11. Bc4 $146 {[%emt 0:04:09]} ({Predecessor:} 11. Qb3 h6 12. Nf5 {1-0 (45) Nun,J (2236)-Vrnata,J (2060) Czechia 2013}) 11... c6 {[%emt 0:14:48]} 12. dxe5 {[%emt 0:03:22]} Nxe5 {[%emt 0:01:32]} 13. Nxe5 {[%emt 0:00:33]} dxe5 {[%emt 0:00:13]} 14. Qb3 {[%emt 0:00:16]} Rf8 {[%emt 0:00:42]} 15. Nf5 {[%emt 0:03:41]} Bc5 {[%emt 0:05:10]} 16. h3 {[%emt 0:01:32]} b5 {[%emt 0:01:13]} 17. Bf1 {[%emt 0:00:26]} Qb6 {[%emt 0:04:09]} 18. Qc2 {[%emt 0:00:14]} a5 {[%emt 0:01:08]} 19. Bg5 {[%emt 0:03:20]} Nh5 {[%emt 0:02:03]} 20. Rad1 {[%emt 0:08:23]} h6 {[%emt 0:02:54]} 21. Be3 {[%emt 0:01:37]} Rad8 {[%emt 0:01:20]} 22. b4 {[%emt 0:04:04]} Bxe3 {[%emt 0:02:49]} 23. Rxe3 {[%emt 0:00:39]} Bc8 {[%emt 0:03:51]} 24. Ne7+ {[%emt 0:10:24]} Kh8 {[%emt 0:00:39]} 25. Nxc8 {[%emt 0:02:43]} Rxc8 {[%emt 0:00:08]} 26. Red3 {[%emt 0:00:10]} Nf6 {[%emt 0:02:09]} 27. Rd6 {[%emt 0:03:48]} Rfd8 {[%emt 0:00:44]} 28. bxa5 {[%emt 0:10:35]} Qxa5 {[%emt 0:00:23]} 29. c4 {[%emt 0:01:15]} Rxd6 {[%emt 0:05:28]} 30. Rxd6 {[%emt 0:00:06]} Qb4 {[%emt 0:00:07]} 31. Rd1 {[%emt 0:03:36]} Ra8 {[%emt 0:04:04]} 32. cxb5 {[%emt 0:05:16]} cxb5 {[%emt 0:00:19]} 33. f3 {[%emt 0:00:42]} Qa5 {[%emt 0:09:00]} 34. Qc5 {[%emt 0:04:16]} Qxa2 {[%emt 0:06:26]} 35. Bxb5 {[%emt 0:00:43]} Qb3 {[%emt 0:01:22]} 36. Re1 {[%emt 0:08:05]} Ra5 {[%emt 0:05:30]} 37. Qc8+ {[%emt 0:01:35]} Kh7 {[%emt 0:00:17]} 38. Qf5+ {[%emt 0:02:19]} Kg8 {[%emt 0:01:20]} 39. Bf1 {[%emt 0:00:32]} Qb6+ {[%emt 0:05:18]} 40. Kh2 {[%emt 0:00:20]} g6 {[%emt 0:01:01]} 41. Qc8+ {[%emt 0:00:06]} Kg7 {[%emt 0:00:09]} 42. Qc2 {[%emt 0:01:07]} Nh5 {[%emt 0:01:40]} 43. g3 {[%emt 0:06:24]} Qe6 {[%emt 0:02:25]} 44. Rb1 {[%emt 0:02:03]} Ra2 {[%emt 0:01:46]} 45. Rb2 {[%emt 0:00:02]} Ra1 {[%emt 0:00:48]} 46. Bc4 $11 {[%emt 0:01:15]} Qc6 {[%emt 0:00:34]} 47. Bd5 {[%emt 0:00:46]} Qxc2+ {[%emt 0:01:26]} 48. Rxc2 {[%emt 0:00:01]} Nf6 {[%emt 0:00:32]} 49. Bc6 {[%emt 0:00:24]} Ra5 {[%emt 0:00:45]} 50. Kg2 {[%emt 0:00:12]} Kf8 {[%emt 0:00:28]} 51. Bb7 {[%emt 0:00:56]} Ke7 {[%emt 0:00:58]} 52. Rc7+ {[%emt 0:00:20]} Nd7 {[%emt 0:00:15]} 53. Bd5 {[%emt 0:01:47]} f6 {[%emt 0:00:27]} 54. Kf2 {[%emt 0:00:20]} Rc5 {[%emt 0:00:47]} 55. Bc6 {[%emt 0:01:06]} Kf8 {[%emt 0:01:42]} 56. Rc8+ {[%emt 0:00:17]} Ke7 {[%emt 0:00:11]} 57. Bxd7 {[%emt 0:00:02]} 1-0